[Event "WSTCC-65 2024"]
[Site "Krakow"]
[Date "2024.07.03"]
[Round "2.1"]
[White "Vogt, Lothar"]
[Black "Nunn, John D M"]
[Result "1/2-1/2"]
[ECO "D79"]
[WhiteElo "2292"]
[BlackElo "2552"]
[Annotator "TA"]
[PlyCount "25"]
[EventDate "2024.07.01"]
[EventType "team-tourn"]
[EventCountry "POL"]
[SourceTitle "playchess.com"]
[Source "ChessBase"]
[SourceQuality "1"]
[TimeControl "40/5400+30:1800+30"]

{[%evp 20,25,0,0,0,0,0,-16]} 1. d4 {[%emt 0:00:03]} Nf6 {[%emt 0:00:09]} 2. c4 {[%emt 0:00:07]} g6 {[%emt 0:00:05]} 3. Nf3 {[%emt 0:00:14]} Bg7 {[%emt 0:00:06]} 4. g3 {[%emt 0:00:06]} c6 {[%emt 0:01:01][%cal Bc7c6,Bc6d5,Bd5e4][%mdl 32]} 5. Bg2 {[%emt 0:00:51]} O-O {[%emt 0:00:10]} 6. O-O {[%emt 0:00:32]} d5 {[%emt 0:00:07]} 7. cxd5 {[%emt 0:00:13]} cxd5 {[%emt 0:00:04]} 8. Nc3 {[%emt 0:00:11]} Ne4 {[%emt 0:00:10]} 9. Nxe4 {[%emt 0:04:39]} dxe4 {[%emt 0:00:34]} 10. Ne5 {[%emt 0:05:52]} Qd5 {[%emt 0:00:32]} 11. b3 {[%emt 0:03:50] The position is equal.} f6 {[%emt 0:16:43]} 12. Nc4 {[%emt 0:01:09]} Nc6 {[%emt 0:00:17]} 13. e3 {[%emt 0:06:38] A rather calm draw.   OK:         	White=1     	Black=1} 1/2-1/2

[Event "WSTCC-65 2024"]
[Site "Krakow"]
[Date "2024.07.03"]
[Round "2.1"]
[White "Shilov, Sergej"]
[Black "Garcia Palermo, Carlos Horacio"]
[Result "1/2-1/2"]
[ECO "B01"]
[WhiteElo "2143"]
[BlackElo "2419"]
[Annotator "TA"]
[PlyCount "75"]
[EventDate "2024.07.01"]
[EventType "team-tourn"]
[EventCountry "POL"]
[SourceTitle "playchess.com"]
[Source "ChessBase"]
[SourceQuality "1"]
[TimeControl "40/5400+30:1800+30"]

{[%evp 9,75,43,57,50,42,57,38,40,47,57,50,36,41,-18,-18,-5,-5,-3,-22,-21,-7,-41,-40,-41,-47,-68,-27,-39,-51,-49,-44,-64,-7,-14,0,0,0,0,0,0,0,0,0,0,0,-53,-62,-58,-58,-58,0,0,0,0,0,0,0,0,0,0,0,0,0,0,0,0,0,0]} 1. e4 {[%emt 0:00:05]} d5 {[%emt 0:00:32]} 2. exd5 {[%emt 0:00:27]} Qxd5 {[%emt 0:00:37]} 3. Nc3 {[%emt 0:00:14]} Qd6 {[%emt 0:00:13]} 4. d4 {[%emt 0:00:38]} Nf6 {[%emt 0:00:16]} 5. Nf3 {[%emt 0:00:31]} Nc6 {[%emt 0:01:24]} 6. Nb5 {[%emt 0:07:27]} Qd8 {[%emt 0:00:34]} 7. c4 {[%emt 0:00:26]} e6 {[%emt 0:01:11]} 8. a3 {[%emt 0:03:15] White is slightly better.} a6 {[%emt 0:00:42]} 9. Nc3 {[%emt 0:00:03]} Bd6 {[%emt 0:01:11]} 10. Bg5 {[%emt 0:03:30]} h6 {[%emt 0:01:23]} 11. Bh4 {[%emt 0:01:28]} (11. Bxf6 $14 Qxf6 12. Ne4) 11... g5 $11 {[%emt 0:01:13]} 12. Bg3 {[%emt 0:00:17]} Bxg3 {[%emt 0:00:20]} 13. hxg3 {[%emt 0:01:19]} g4 {[%emt 0:01:14]} 14. Ne5 {[%emt 0:07:33]} Qxd4 {[%emt 0:07:18]} 15. Nxc6 {[%emt 0:02:38]} Qxd1+ {[%emt 0:00:09]} 16. Rxd1 {[%emt 0:00:28][%csl Gc6][%cal Rd1d8] [#]} bxc6 {[%emt 0:00:07]} 17. Bd3 {[%emt 0:00:40]} a5 {[%emt 0:01:47]} 18. Ne4 {[%emt 0:06:02]} Nxe4 {[%emt 0:00:52]} 19. Bxe4 {[%emt 0:00:12]} Bd7 {[%emt 0:00:43]} 20. Kd2 {[%emt 0:03:08]} f5 {[%emt 0:00:53]} (20... Ke7 $15) 21. Bc2 {[%emt 0:00:27]} a4 {[%emt 0:16:01]} 22. Kc3 {[%emt 0:08:56]} Ke7 {[%emt 0:00:45]} 23. Rhe1 {[%emt 0:00:29]} Ra5 {[%emt 0:00:31]} 24. Kb4 {[%emt 0:08:56][%csl LRa4,LRa5]} c5+ {[%emt 0:02:00]} 25. Kc3 $1 {[%emt 0:00:06][%cal Od1d5]} Rf8 {[%emt 0:00:34]} 26. Rd5 {[%emt 0:03:05]} f4 {[%emt 0:02:35]} 27. Rf5 {[%emt 0:01:39]} (27. gxf4 $11 Rxf4 28. Rh5) 27... Rxf5 $15 {[%emt 0:04:49]} 28. Bxf5 {[%emt 0:01:06]} fxg3 {[%emt 0:00:32]} 29. fxg3 {[%emt 0:00:17][%mdl 4096] Endgame. KRB-KRB} h5 {[%emt 0:00:34]} (29... Ra8 $1 $15) 30. Bg6 $11 {[%emt 0:01:57] The position is equal.} Kf6 {[%emt 0:01:33]} 31. Bxh5 {[%emt 0:01:18]} e5 {[%emt 0:00:29] [#] White must now prevent ...Ra8.} 32. Rd1 $1 {[%emt 0:02:50]} ({Reject} 32. Rf1+ Kg5 33. Rd1 Bc6 $15) 32... Be6 {[%emt 0:02:05]} (32... Bf5 $5 33. Be8 $8 Ra6 $11) 33. Rf1+ {[%emt 0:01:47]} Kg5 {[%emt 0:03:23]} 34. Be8 {[%emt 0:00:34]} Bf5 {[%emt 0:07:02] Hoping for ...Ra8.} 35. Re1 {[%emt 0:02:37]} Kf6 {[%emt 0:01:20]} 36. Rf1 {[%emt 0:00:20] Threatens to win with Bd7.} Kg5 {[%emt 0:00:22] ...Ra8 would now be deadly.} 37. Re1 {[%emt 0:00:07]} Kf6 {[%emt 0:04:23]} 38. Rf1 {[%emt 0:00:07] Weighted Error Value: White=0.11 (very precise) /Black=0.07 (flawless) .  Mistake:       	White=2     	Black=2      Inaccurate:     	White=1     	Black=1      OK:         	White=13    	Black=20     Best:        	---       	Black=6      Strong:       	White=2     	---} 1/2-1/2

[Event "WSTCC-65 2024"]
[Site "Krakow"]
[Date "2024.07.03"]
[Round "2.1"]
[White "Freeman, Richard C P"]
[Black "Rewitz, Jan"]
[Result "1/2-1/2"]
[ECO "B01"]
[WhiteElo "1951"]
[BlackElo "2089"]
[Annotator "NA RC"]
[PlyCount "73"]
[EventDate "2024.07.01"]
[EventType "team-tourn"]
[EventCountry "POL"]
[SourceTitle "playchess.com"]
[Source "ChessBase"]
[SourceQuality "1"]
[TimeControl "40/5400+30:1800+30"]

1. e4 {[%emt 0:00:03]} d5 {[%emt 0:01:03]} 2. exd5 {[%emt 0:00:26]} Nf6 {[%emt 0:00:13]} 3. d4 {[%emt 0:01:15]} Nxd5 {[%emt 0:00:12]} 4. c4 {[%emt 0:00:36]} Nb6 {[%emt 0:00:03]} 5. Nf3 {[%emt 0:00:39]} g6 {[%emt 0:00:40]} 6. c5 {[%emt 0:01:41]} Nd5 {[%emt 0:02:56]} 7. Bc4 {[%emt 0:01:26]} c6 {[%emt 0:06:11]} 8. Nc3 {[%emt 0:16:19]} Bg7 {[%emt 0:00:14]} 9. Qb3 {[%emt 0:01:19]} O-O {[%emt 0:00:50]} 10. O-O {[%emt 0:02:31]} Nxc3 {[%emt 0:03:22]} 11. bxc3 {[%emt 0:01:15]} b6 {[%emt 0:01:15]} 12. cxb6 {[%emt 0:04:46]} axb6 {[%emt 0:03:07]} 13. Re1 {[%emt 0:08:13]} Ba6 {[%emt 0:02:37]} 14. Bg5 {[%emt 0:07:59]} Bxc4 {[%emt 0:03:03]} 15. Qxc4 {[%emt 0:03:02]} Ra7 {[%emt 0:00:16]} 16. Re2 {[%emt 0:10:50]} Re8 {[%emt 0:14:39]} 17. Rae1 {[%emt 0:00:48]} Kf8 {[%emt 0:01:03]} 18. h3 {[%emt 0:18:28]} Qd5 {[%emt 0:04:17]} 19. Qb4 {[%emt 0:01:01]} f6 {[%emt 0:10:31]} 20. Qxb6 {[%emt 0:04:08]} Qa5 {[%emt 0:12:25]} 21. Qxa5 {[%emt 0:01:19]} Rxa5 {[%emt 0:01:12]} 22. Bf4 {[%emt 0:00:20]} Ra7 {[%emt 0:06:56]} 23. Re6 {[%emt 0:02:21]} Kf7 {[%emt 0:01:34]} 24. R1e2 {[%emt 0:05:54]} Bf8 {[%emt 0:01:27]} 25. Bxb8 {[%emt 0:00:39]} Rxb8 {[%emt 0:00:02]} 26. Rxc6 {[%emt 0:00:10]} Rb1+ {[%emt 0:00:59]} 27. Kh2 {[%emt 0:00:36]} Ra1 {[%emt 0:00:18]} 28. d5 {[%emt 0:01:43]} R1xa2 {[%emt 0:01:07]} 29. Rxa2 {[%emt 0:00:23]} Rxa2 {[%emt 0:00:03]} 30. Kg1 {[%emt 0:01:44]} Bh6 {[%emt 0:02:07]} 31. g3 {[%emt 0:01:34]} Bc1 {[%emt 0:08:50]} 32. c4 {[%emt 0:01:40]} Bb2 {[%emt 0:01:21]} 33. c5 {[%emt 0:00:26]} Ra1+ {[%emt 0:01:51]} 34. Kg2 {[%emt 0:00:12]} Rd1 {[%emt 0:00:02]} 35. d6 {[%emt 0:00:19]} exd6 {[%emt 0:00:13]} 36. Rxd6 {[%emt 0:00:53]} Rxd6 {[%emt 0:00:20]} 37. cxd6 {[%emt 0:00:05]} 1/2-1/2

[Event "WSTCC-65 2024"]
[Site "Krakow"]
[Date "2024.07.03"]
[Round "2.2"]
[White "Kosten, Anthony C."]
[Black "Miltner, Arndt"]
[Result "1-0"]
[ECO "A04"]
[WhiteElo "2360"]
[BlackElo "2259"]
[Annotator "TA"]
[PlyCount "41"]
[EventDate "2024.07.01"]
[EventType "team-tourn"]
[EventCountry "POL"]
[SourceTitle "playchess.com"]
[Source "ChessBase"]
[SourceQuality "1"]
[TimeControl "40/5400+30:1800+30"]

{[%evp 20,41,18,0,54,45,82,26,29,29,76,91,168,158,257,266,251,249,330,337,333,327,330,343]} 1. Nf3 {[%emt 0:00:05]} d6 {[%emt 0:00:42]} 2. d4 {[%emt 0:02:01]} Nf6 {[%emt 0:00:26]} 3. Nc3 {[%emt 0:00:50]} Nbd7 {[%emt 0:01:00]} 4. e4 {[%emt 0:00:28]} e5 {[%emt 0:00:21]} 5. Bc4 {[%emt 0:00:28]} Be7 {[%emt 0:00:17]} 6. O-O {[%emt 0:00:21]} O-O {[%emt 0:00:16]} 7. Re1 {[%emt 0:00:30]} c6 {[%emt 0:00:44]} 8. a4 {[%emt 0:00:08]} a5 {[%emt 0:00:12]} 9. h3 {[%emt 0:00:38]} exd4 {[%emt 0:00:31]} 10. Nxd4 {[%emt 0:01:59]} Nc5 {[%emt 0:01:13]} 11. Bf4 {[%emt 0:14:12]} Ne8 {[%emt 0:04:01]} (11... Be6 $1 $11 12. Nxe6 fxe6) 12. Qd2 {[%emt 0:04:49]} Be6 {[%emt 0:03:15]} 13. Nxe6 {[%emt 0:07:46]} ({White should play} 13. Be2 $16) 13... fxe6 $11 {[%emt 0:01:44] White has an edge.} 14. Rad1 {[%emt 0:00:59]} d5 {[%emt 0:02:15]} (14... Qb6 $11) 15. exd5 $16 {[%emt 0:05:55]} exd5 {[%emt 0:00:18] [#]} (15... cxd5 $16 {was necessary.} 16. Be2 Kh8) 16. Qe3 $1 $18 {[%emt 0:05:04][%cal Rc3d5] And now Nxd5 would win.} Nd6 {[%emt 0:30:06] [#]} (16... Nf6 $16) 17. Bxd5+ $1 {[%emt 0:12:09]} ({Not} 17. Qxe7 Qxe7 18. Bxd5+ (18. Rxe7 Rxf4 19. Bxd5+ cxd5 $11) 18... cxd5 $15) 17... cxd5 {[%emt 0:01:33]} 18. Qxc5 {[%emt 0:01:05]} Nf5 {[%emt 0:12:10]} 19. Qxd5+ {[%emt 0:01:22] White has a decisive advantage.} Qxd5 {[%emt 0:00:23]} 20. Nxd5 {[%emt 0:00:13]} Bc5 {[%emt 0:00:23]} 21. Nc7 {[%emt 0:00:46] Weighted Error Value: White=0.08 (flawless) /Black=0.52.  Mistake:       	White=1     	Black=3      Inaccurate:     	---       	Black=1      OK:         	White=5     	Black=1      Best:        	White=1     	---        Strong:       	White=1     	---} 1-0

[Event "WSTCC-65 2024"]
[Site "Krakow"]
[Date "2024.07.03"]
[Round "2.2"]
[White "Messa, Roberto"]
[Black "Gasik, Piotr"]
[Result "1-0"]
[ECO "A44"]
[WhiteElo "2262"]
[BlackElo "1954"]
[Annotator "RC"]
[PlyCount "69"]
[EventDate "2024.07.01"]
[EventType "team-tourn"]
[EventCountry "POL"]
[SourceTitle "playchess.com"]
[Source "ChessBase"]
[SourceQuality "1"]
[TimeControl "40/5400+30:1800+30"]

1. d4 {[%emt 0:00:55]} c5 {[%emt 0:02:43]} 2. d5 {[%emt 0:00:12]} e5 {[%emt 0:00:06]} 3. c4 {[%emt 0:01:20]} d6 {[%emt 0:00:06]} 4. e4 {[%emt 0:00:33]} Be7 {[%emt 0:00:33]} 5. Nf3 {[%emt 0:11:18]} Bg4 6. Be2 {[%emt 0:00:16]} Bxf3 {[%emt 0:09:43]} 7. Bxf3 {[%emt 0:00:03]} Bg5 {[%emt 0:00:07]} 8. Bxg5 {[%emt 0:00:57]} Qxg5 {[%emt 0:00:10]} 9. Nc3 {[%emt 0:00:19]} Nh6 {[%emt 0:03:12]} 10. h4 {[%emt 0:08:44]} Qe7 {[%emt 0:01:34]} 11. g4 {[%emt 0:00:44]} f6 {[%emt 0:04:06]} 12. Qd2 {[%emt 0:00:03]} Nf7 {[%emt 0:01:26]} 13. O-O-O {[%emt 0:05:08]} h6 {[%emt 0:04:13]} 14. Kb1 {[%emt 0:01:35]} a6 {[%emt 0:04:05]} 15. Be2 {[%emt 0:01:53]} Nd7 {[%emt 0:01:23]} 16. Rc1 {[%emt 0:03:44]} O-O-O {[%emt 0:00:50]} 17. Rh3 {[%emt 0:04:38]} Nb6 {[%emt 0:04:33]} 18. Nd1 {[%emt 0:01:00]} Qc7 {[%emt 0:03:43]} 19. Ne3 {[%emt 0:02:21]} Kb8 {[%emt 0:01:00]} 20. Nc2 {[%emt 0:00:47]} Ka7 {[%emt 0:01:19]} 21. Ra3 {[%emt 0:01:01]} Rhe8 {[%emt 0:02:40]} 22. Na1 {[%emt 0:02:38]} Re7 {[%emt 0:05:26]} 23. Nb3 {[%emt 0:00:47]} Rc8 {[%emt 0:00:54]} 24. Na5 {[%emt 0:00:14]} Qd8 {[%emt 0:01:11]} 25. Rcc3 {[%emt 0:02:18]} Qc7 {[%emt 0:02:02]} 26. Rcb3 {[%emt 0:00:46]} Nd8 {[%emt 0:01:43]} 27. Rg3 {[%emt 0:10:19]} Nf7 {[%emt 0:00:44]} 28. Qe3 {[%emt 0:09:56]} Ree8 {[%emt 0:01:57]} 29. Qb3 {[%emt 0:01:12]} Rf8 {[%emt 0:02:54]} 30. Qb5 {[%emt 0:02:27]} Kb8 {[%emt 0:00:54]} 31. Qb3 {[%emt 0:04:03]} Ka7 {[%emt 0:00:44]} 32. Qf3 {[%emt 0:00:50]} Rb8 {[%emt 0:01:33]} 33. Qf5 {[%emt 0:00:52]} Qe7 {[%emt 0:01:31]} 34. Rgb3 {[%emt 0:01:13]} Qd7 {[%emt 0:04:24]} 35. Nc6+ {[%emt 0:02:17]} 1-0

[Event "WSTCC-65 2024"]
[Site "Krakow"]
[Date "2024.07.03"]
[Round "2.2"]
[White "Mortensen, John"]
[Black "Wood, Peter R"]
[Result "0-1"]
[ECO "C03"]
[WhiteElo "2048"]
[BlackElo "1948"]
[Annotator "NA RC"]
[PlyCount "60"]
[EventDate "2024.07.01"]
[EventType "team-tourn"]
[EventCountry "POL"]
[SourceTitle "playchess.com"]
[Source "ChessBase"]
[SourceQuality "1"]
[TimeControl "40/5400+30:1800+30"]

1. e4 {[%emt 0:00:27]} e6 {[%emt 0:00:12]} 2. d4 {[%emt 0:00:19]} d5 {[%emt 0:00:11]} 3. Nd2 {[%emt 0:00:34]} h6 {[%emt 0:00:17]} 4. c3 {[%emt 0:02:23]} c5 {[%emt 0:06:31]} 5. exd5 {[%emt 0:01:20]} Qxd5 {[%emt 0:03:53]} 6. Ngf3 {[%emt 0:00:17]} Nc6 {[%emt 0:01:29]} 7. Bc4 {[%emt 0:01:05]} Qh5 {[%emt 0:00:22]} 8. O-O {[%emt 0:00:54]} Nf6 {[%emt 0:01:42]} 9. Qe2 {[%emt 0:01:45]} cxd4 {[%emt 0:01:39]} 10. cxd4 {[%emt 0:00:07]} Be7 {[%emt 0:02:43]} 11. Ne4 {[%emt 0:03:03]} O-O {[%emt 0:10:59]} 12. Ng3 {[%emt 0:05:22]} Qa5 {[%emt 0:00:35]} 13. Bd2 {[%emt 0:01:00]} Qd8 {[%emt 0:05:15]} 14. Rad1 {[%emt 0:01:45]} a6 {[%emt 0:18:35]} 15. a4 {[%emt 0:07:11]} Re8 {[%emt 0:03:13]} 16. Bc1 {[%emt 0:05:50]} Nb4 {[%emt 0:02:16]} 17. Ne5 {[%emt 0:01:11]} Nbd5 {[%emt 0:00:35]} 18. Nh5 {[%emt 0:00:56]} Bf8 {[%emt 0:08:48]} 19. Rd3 {[%emt 0:03:06]} Nxh5 {[%emt 0:14:32]} 20. Qxh5 {[%emt 0:00:16]} Qe7 {[%emt 0:00:11]} 21. Rg3 {[%emt 0:02:29]} g6 {[%emt 0:08:06]} 22. Bxh6 {[%emt 0:01:15]} Bxh6 {[%emt 0:01:15]} 23. Qxh6 {[%emt 0:00:06]} Qf8 {[%emt 0:02:16]} 24. Qg5 {[%emt 0:01:58]} Qe7 {[%emt 0:00:46]} 25. Qg4 {[%emt 0:01:45]} Nf6 {[%emt 0:01:16]} 26. Nxg6 {[%emt 0:04:02]} Nxg4 {[%emt 0:00:16]} 27. Nxe7+ {[%emt 0:00:07]} Rxe7 {[%emt 0:00:05]} 28. Rxg4+ {[%emt 0:00:07]} Kf8 {[%emt 0:00:14]} 29. d5 {[%emt 0:00:30]} exd5 {[%emt 0:00:42]} 30. Bxd5 {[%emt 0:00:06]} Bxg4 {[%emt 0:00:06]} 0-1

[Event "WSTCC-65 2024"]
[Site "Krakow"]
[Date "2024.07.03"]
[Round "2.3"]
[White "Wenner, Tobias"]
[Black "Mestel, A Jonathan"]
[Result "0-1"]
[ECO "A37"]
[WhiteElo "2090"]
[BlackElo "2470"]
[Annotator "TA"]
[PlyCount "64"]
[EventDate "2024.07.01"]
[EventType "team-tourn"]
[EventCountry "POL"]
[SourceTitle "playchess.com"]
[Source "ChessBase"]
[SourceQuality "1"]
[TimeControl "40/5400+30:1800+30"]

{[%evp 13,64,0,-6,4,0,-64,-76,-69,-58,-126,-143,-135,-143,-133,-135,-145,-130,-136,-135,-196,-183,-191,-165,-179,-133,-171,-175,-199,-171,-259,-241,-293,-305,-415,-238,-343,-148,-147,-148,-165,-163,-152,-150,-397,-233,-350,-322,-520,-491,-457,-499,-29985,-489]} 1. Nf3 {[%emt 0:00:04]} c5 {[%emt 0:00:32]} 2. c4 {[%emt 0:00:26]} g6 {[%emt 0:00:54]} 3. Nc3 {[%emt 0:00:50]} Bg7 {[%emt 0:00:31]} 4. g3 {[%emt 0:00:29]} Nc6 {[%emt 0:03:08]} 5. Bg2 {[%emt 0:00:33]} e6 {[%emt 0:04:47]} 6. d4 {[%emt 0:00:35]} Nxd4 {[%emt 0:12:51]} 7. Nxd4 {[%emt 0:00:12]} cxd4 {[%emt 0:00:09]} 8. Nb5 {[%emt 0:00:30][%cal Od1b3]} Qb6 {[%emt 0:00:22]} 9. a4 {[%emt 0:19:28]} (9. Qa4 $11 a6 10. e3) 9... a6 $1 $15 {[%emt 0:01:40]} 10. a5 {[%emt 0:22:35] Black is better.} Qc5 {[%emt 0:01:35]} 11. b4 {[%emt 0:00:14]} Qxb4+ $17 {[%emt 0:01:15]} 12. Bd2 {[%emt 0:00:19]} Qc5 {[%emt 0:00:35] Prevents Nc7+.} (12... Qxc4 $2 13. Nd6+ Kd8 14. Nxc4 $18) 13. Na3 {[%emt 0:00:55]} Ne7 {[%emt 0:02:03]} 14. Qa4 {[%emt 0:07:55]} Nc6 {[%emt 0:05:32][%cal Od4d3] Against Bb4} 15. Rb1 {[%emt 0:00:40]} O-O {[%emt 0:04:11]} 16. Rb6 {[%emt 0:04:46]} (16. O-O $17 {was necessary.}) 16... Qe5 $19 {[%emt 0:11:53]} 17. f4 {[%emt 0:06:52]} Qf5 {[%emt 0:06:25]} 18. O-O {[%emt 0:02:07]} d5 {[%emt 0:03:27]} ({Black should try} 18... Rd8 $19 19. Rc1 d6 20. Bxc6 bxc6 21. Qxc6 Bd7) 19. cxd5 {[%emt 0:01:28]} exd5 {[%emt 0:00:06]} 20. Bf3 {[%emt 0:09:39]} h5 {[%emt 0:03:11]} 21. Kh1 {[%emt 0:04:48]} (21. Nc2 {is a better defense.}) 21... Rd8 {[%emt 0:02:32]} 22. Qb3 {[%emt 0:03:50]} Bf8 {[%emt 0:02:04]} 23. Rc1 {[%emt 0:00:51]} Bd6 {[%emt 0:00:28]} (23... d3 $142 24. e3 Be6 25. Rxb7 Rac8) 24. Qa4 {[%emt 0:02:32]} (24. Nc2 $142) 24... Bc7 {[%emt 0:05:05]} (24... d3 $19 {has better winning chances. Threatens to win with ...dxe2.} 25. Rb3 dxe2) 25. Rbxc6 $17 {[%emt 0:02:24]} bxc6 {[%emt 0:06:07]} 26. Qxd4 {[%emt 0:00:31]} Bb7 {[%emt 0:01:59]} 27. Bc3 {[%emt 0:01:10]} f6 $1 {[%emt 0:00:14][%cal Oc6c5]} 28. e3 $2 {[%emt 0:05:20] [#] Loses the game.} (28. Nc2 $17) 28... Be5 {[%emt 0:03:01]} (28... c5 $142 $1 {[%mdl 512]} 29. Qd2 (29. Qa4 Rab8) 29... Rab8) 29. Qb4 {[%emt 0:01:35]} (29. Qd1 {might work better.} Bxc3 30. Rxc3) 29... Rab8 $19 {[%emt 0:01:28]} 30. e4 $2 {[%emt 0:00:49]} (30. Bd4) 30... Bxc3 {[%emt 0:01:25]} 31. Rxc3 {[%emt 0:00:03]} dxe4 {[%emt 0:01:10]} 32. Bxe4 {[%emt 0:00:34] [#]} (32. Qxe4 $19 c5 (32... Qxa5 33. Qxg6+ Kf8 34. Qxf6+ Kg8 35. Re3 $16) 33. Qxf5 Bxf3+ (33... gxf5 $2 34. Bxb7 Rxb7 35. Nc4 $19) 34. Rxf3 gxf5 35. Rf2) 32... Qxe4+ {[%emt 0:00:27] Weighted Error Value: White=0.77/Black=0.33.  Loses game:     	White=1     	---        Missed win:     	---       	Black=1      Mistake:       	White=8     	Black=4      Inaccurate:     	White=1     	---        OK:         	White=6     	Black=10     Best:        	White=2     	Black=2      Strong:       	---       	Black=2} 0-1

[Event "WSTCC-65 2024"]
[Site "Krakow"]
[Date "2024.07.03"]
[Round "2.3"]
[White "Pietrzak, Janusz"]
[Black "Cocozza, Mario"]
[Result "0-1"]
[ECO "B10"]
[WhiteElo "1919"]
[BlackElo "2206"]
[Annotator "TA"]
[PlyCount "79"]
[EventDate "2024.07.01"]
[EventType "team-tourn"]
[EventCountry "POL"]
[SourceTitle "playchess.com"]
[Source "ChessBase"]
[SourceQuality "1"]
[TimeControl "40/5400+30:1800+30"]

{[%evp 13,79,0,0,0,0,-7,-10,-10,-10,-19,0,-41,-39,-30,-38,-58,-14,-125,-143,-130,-93,-93,0,10,5,-50,-36,-107,-92,-125,-39,-95,-103,-124,-85,-83,-60,-348,-366,-371,-103,-77,-79,-192,-187,-192,-210,-194,-198,-179,-196,-191,-189,-354,-225,-273,-273,-384,-364,-389,-387,-374,-354,-560,-593,-2051,-2056,-1498]} 1. e4 {[%emt 0:00:21]} c6 {[%emt 0:00:13]} 2. c4 {[%emt 0:00:26]} d5 {[%emt 0:00:13]} 3. exd5 {[%emt 0:00:31]} cxd5 {[%emt 0:00:10]} 4. cxd5 {[%emt 0:00:08]} Nf6 {[%emt 0:00:07]} 5. Qa4+ {[%emt 0:00:41]} Nbd7 {[%emt 0:00:12]} 6. Nc3 {[%emt 0:00:26]} g6 {[%emt 0:00:34]} 7. d4 {[%emt 0:01:41]} Bg7 {[%emt 0:00:10]} 8. g3 {[%emt 0:06:00]} O-O {[%emt 0:01:24]} 9. Bg2 {[%emt 0:00:03]} Nb6 {[%emt 0:07:58][%csl LRa4,LRd5]} 10. Qb3 {[%emt 0:00:27] The position is equal.} a5 {[%emt 0:09:49]} 11. a4 {[%emt 0:03:56]} e6 {[%emt 0:13:52]} 12. d6 {[%emt 0:00:06]} Qxd6 {[%emt 0:00:38]} 13. Nge2 {[%emt 0:13:29]} Qb4 {[%emt 0:04:01]} 14. Qc2 {[%emt 0:04:10]} e5 {[%emt 0:15:07]} 15. Bd2 {[%emt 0:06:35]} (15. b3 $1 $11 Bf5 (15... exd4 16. Ba3 $11) 16. Qd1 exd4 17. Ba3 Qxa3 (17... dxc3 18. Bxb4 axb4 19. O-O $17) 18. Rxa3 dxc3 19. Qd6 (19. Nxc3 $2 Rfe8+ 20. Kf1 Rad8 $19)) 15... Bf5 $36 {[%emt 0:03:55][%mdl 2048] White is under strong pressure.} 16. Ne4 {[%emt 0:19:46]} Qe7 {[%emt 0:13:44] And now ...exd4 would win. Black is more active.} 17. Qc5 {[%emt 0:02:24]} Nfd5 {[%emt 0:05:39]} ({Black should play} 17... Rfe8 $1 $17 18. Qxe7 Rxe7) 18. Qxe7 $1 $11 {[%emt 0:13:55]} Nxe7 {[%emt 0:00:04]} 19. Nd6 {[%emt 0:05:25]} (19. dxe5 $11 Bxe5 20. Bc3) 19... exd4 $15 {[%emt 0:02:37] White must now prevent ...Bc2.} 20. Bxb7 {[%emt 0:00:40]} (20. Bg5 $1 $15 Nc6 21. Nxf5 gxf5 22. O-O) 20... Ra7 $17 {[%emt 0:01:42]} 21. Bf3 {[%emt 0:01:02]} Bd7 {[%emt 0:02:36]} (21... Bc2 $17 {[%cal Od4d3] ...d3! is the strong threat.} 22. Nb5 Rd7) 22. O-O {[%emt 0:01:04]} (22. Nb5 $15 Bxb5 23. axb5) 22... Nxa4 {[%emt 0:01:10]} 23. Rfc1 {[%emt 0:05:24]} Rb8 {[%emt 0:07:15]} 24. Nc4 {[%emt 0:02:46]} Rb3 {[%emt 0:03:51]} ({Reject} 24... Nxb2 $6 25. Rab1 $11) 25. Nxd4 {[%emt 0:05:22][%mdl 8192]} Bxd4 $19 {[%emt 0:00:27]} 26. Bd1 {[%emt 0:00:03] [#]} Rb4 {[%emt 0:03:10]} 27. Bxb4 $17 {[%emt 0:03:34]} axb4 {[%emt 0:00:02]} 28. Ra2 {[%emt 0:01:56]} (28. Rc2 $17 {was necessary.}) 28... Nc8 $19 {[%emt 0:00:21]} 29. Bxa4 {[%emt 0:00:53]} Rxa4 {[%emt 0:00:38]} ({Don't do} 29... Bxa4 30. Ne3 Bd7 31. Rxa7 Bxa7 (31... Nxa7 32. Rd1 $11) 32. Nd5 $17) 30. Rxa4 {[%emt 0:00:17]} Bxa4 {[%emt 0:00:02] This pair of bishops is nice.} 31. Ra1 {[%emt 0:00:20] [#]} Bc6 {[%emt 0:01:08]} 32. Rd1 {[%emt 0:00:19]} Bf6 {[%emt 0:00:33]} 33. Nd6 $2 {[%emt 0:00:41]} (33. Na5 Bf3 34. Rd3) 33... Ne7 {[%emt 0:00:39]} 34. b3 {[%emt 0:00:55]} Bc3 {[%emt 0:01:03]} 35. Nc4 {[%emt 0:00:34]} (35. Rd3 $142) 35... Kg7 {[%emt 0:01:14]} 36. Rd6 {[%emt 0:00:32]} Bd5 {[%emt 0:00:38]} 37. Na5 {[%emt 0:00:10]} Be6 {[%emt 0:00:13] Strongly threatening ...Nf5.} 38. Kf1 {[%emt 0:00:22]} (38. Rd8 {might work better.}) 38... Nf5 {[%emt 0:00:17]} 39. Ke2 {[%emt 0:00:41]} Nxd6 {[%emt 0:00:06]} 40. Kf1 {Weighted Error Value: White=0.60/Black=0.33.  Loses game:     	White=1     	---        Missed win:     	---       	Black=1      Mistake:       	White=8     	Black=2      Inaccurate:     	White=3     	Black=3      OK:         	White=6     	Black=11     Best:        	White=1     	Black=4      Strong:       	White=1     	---} 0-1